Workbook

Sheet Comparison
A1: Revenue (month) | B1: 4000 | D1: HOW TO USE THIS SHEET
A2: # of Transactions | B2: 3000 | D2: Put your average revenue and # of transactions in the green boxes. The sheet will update automatically
A3: Avg amount per transaction | B3: =B1/B2 -> 1.333333333
A4: Gateways - eWay | C4: Actual Percentage | D4: Notes
A5: Low Plan | B5: =3.4%*B1 -> 136 | C5: =B5/$B$1 -> 0.034
A6: Medium Plan | B6: =2.95%*B1 + 15 -> 133 | C6: 0.03325
A7: High Plan | B7: =2.7%*B1 + 35 -> 143 | C7: 0.03575
A8: Budget | B8: =0.3*if(B2 > 100,(B2-100),0)+25 -> 895 | C8: 0.22375 | D8: Extra bank fees may apply
A9: VIP | B9: =0.15*if($B$2 > 300,($B$2-300),0)+55 -> 460 | C9: 0.115 | D9: Extra bank fees may apply
A10: Community | B10: =0.15*if($B$2 > 10,($B$2-10),0)+15 -> 463.5 | C10: 0.115875 | D10: Extra bank fees may apply
A11: Gateways - Stripe | C11: -
A12: Basic | B12: =2.9%*B1+0.3*B2 -> 1016 | C12: =B12/$B$1 -> 0.254 | D12: Plans can be negotiated with a high volume of sales or a unique business model
A13: Gateways - Paypal | C13: -
A14: Basic | B14: =3.4%*B1 + 0.45*B2 -> 1486 | C14: =B14/$B$1 -> 0.3715 | D14: Custom pricing can be negotiated with a high volume of sales
A15: Gateways - Windcave | C15: -
A16: Rocket Micro | B16: =0.5*B2+15 -> 1515 | C16: =B16/$B$1 -> 0.37875 | D16: Custom pricing can be negotiated with a high volume of sales
A17: Rocket Starter | B17: =0.3*if(B2 > 100,(B2-100),0)+30 -> 900 | C17: 0.225 | D17: Custom pricing can be negotiated with a high volume of sales
